[Event "Romanian Rapid Open 2022"]
[Site "Sebes"]
[Date "2022.12.02"]
[Round "6.31"]
[White "Nagy-Elek, Tamas"]
[Black "Lup, Constantin-Ionel"]
[Result "0-1"]
[ECO "B27"]
[WhiteElo "1976"]
[BlackElo "1739"]
[Annotator "TA"]
[PlyCount "108"]
[EventDate "2022.12.02"]
[EventType "rapid"]
[EventCountry "ROU"]
[SourceTitle "playchess.com"]
[Source "ChessBase"]
[SourceQuality "1"]
[TimeControl "600+5"]

{[%evp 10,108,34,36,36,16,14,0,3,8,16,-11,-2,0,-2,-33,-8,-18,-18,-115,-137,-124,-131,-223,-212,-227,-204,-207,-111,-115,0,-105,-100,-189,-118,-120,-109,-109,-93,-89,-87,-104,-60,-91,-62,-123,-61,-65,0,0,0,0,0,0,0,0,0,-12,-14,-20,0,-97,-103,-103,-103,-94,-27,-133,-124,-187,-150,-234,-229,-322,-199,-216,-200,-289,-289,-283,-256,-298,-269,-255,-223,-357,-332,-371,-228,-1172,-1123,-2238,-1912,-12841,-12841,-12843,-12843,-29989,-29990,-29992,-29991]} 1. e4 {[%emt 0:00:02]} c5 {[%emt 0:00:01]} 2. Nf3 {[%emt 0:00:03]} g6 {[%emt 0:00:03]} 3. c3 {[%emt 0:00:06]} Bg7 {[%emt 0:00:02]} 4. d4 {[%emt 0:00:03]} cxd4 {[%emt 0:00:10]} 5. cxd4 {[%emt 0:00:02]} d5 {[%emt 0:00:01]} 6. e5 {[%emt 0:00:04]} a6 {[%emt 0:00:03] B27: Sicilian: 2 Nf3, unusual Black 2nd moves.} 7. Nc3 {[%emt 0:00:16]} Nc6 {[%emt 0:00:04]} 8. Be2 {[%emt 0:00:23]} Bg4 {[%emt 0:00:04] The position is equal.} 9. O-O {[%emt 0:00:11][%cal Ob2b4]} e6 {[%emt 0:00:05]} 10. h3 {[%emt 0:00:09]} Bxf3 {[%emt 0:00:04]} 11. Bxf3 {[%emt 0:00:02]} Nge7 {[%emt 0:00:08][%cal Bg8e7,Be7f5,Bf5h4,Bh4f3][%mdl 32]} 12. Be3 {[%emt 0:00:33]} O-O {[%emt 0:00:05]} 13. Qd2 {[%emt 0:00:05]} Nf5 {[%emt 0:00:17] [#]} 14. Rfd1 $146 {[%emt 0:00:43]} (14. Bg4 $11) ({Predecessor:} 14. Bg4 Nxe3 15. fxe3 h5 16. Be2 Bh6 17. Rf3 Ne7 18. Bd3 Nf5 19. Bxf5 gxf5 20. Ne2 {½-½ (26) Chladek,V (2165)-Ardeleanu,A (2424) Ceska Trebova 2006}) 14... f6 $17 {[%emt 0:00:11]} 15. exf6 {[%emt 0:00:24]} Qxf6 {[%emt 0:00:13][%cal Rc6d4]} 16. Ne2 {[%emt 0:02:06]} (16. Rf1 $17) 16... Nh4 $1 $19 {[%emt 0:01:58]} 17. Bf4 {[%emt 0:02:54]} Nxf3+ {[%emt 0:00:37]} (17... g5 $2 18. Bg3) 18. gxf3 {[%emt 0:00:03]} Qh4 {[%emt 0:01:39]} ({Stronger than} 18... g5 19. Bd6 $17) (18... Qf5 $1 $19 {[%cal Rf5h3]} 19. Kh2 Rae8) 19. Kg2 $17 {[%emt 0:00:22]} Qf6 {[%emt 0:01:49] Black has more active pieces.} ({Black should try} 19... Rf5 $17 {Hoping for ...Qf6.} 20. Bg3 Qf6) 20. Qe3 {[%emt 0:00:39]} (20. Kg1 $1 $11) 20... Rae8 {[%emt 0:00:34]} 21. Bg5 {[%emt 0:00:58] [#] Inhibits e5.} (21. Rac1 $17 {was worth a try.}) 21... Qf5 {[%emt 0:00:28]} (21... Qf7 $1 $19 {White must now prevent ...e5.} 22. Qb3 e5) 22. f4 {[%emt 0:00:44] Against e5} h6 {[%emt 0:01:37]} 23. Bh4 {[%emt 0:00:05]} Qh5 {[%emt 0:00:07]} 24. Bg3 {[%emt 0:00:19]} Rf6 {[%emt 0:00:23]} 25. Ng1 {[%emt 0:00:20]} Ref8 {[%emt 0:00:14]} 26. Qe2 {[%emt 0:00:15]} Qf5 {[%emt 0:00:46]} (26... Qxe2 {simplifies} 27. Nxe2 Rc8 28. Ng1 Rff8) 27. Qd3 {[%emt 0:00:09]} (27. Rd3 $1 $15) 27... Qxd3 {[%emt 0:00:13]} (27... g5 $17 28. Qxf5 Rxf5) 28. Rxd3 $15 {[%emt 0:00:01]} g5 {[%emt 0:00:08]} ({Better is} 28... Rc8 $15) 29. fxg5 $11 {[%emt 0:00:11]} hxg5 {[%emt 0:00:01]} 30. Nf3 {[%emt 0:00:09]} Rf5 {[%emt 0:00:10]} 31. Re1 {[%emt 0:00:05]} R8f6 {[%emt 0:00:13]} 32. Ne5 {[%emt 0:00:10]} Nxe5 {[%emt 0:00:05]} 33. dxe5 {[%emt 0:00:01]} Rf7 {[%emt 0:00:07]} 34. Rc3 {[%emt 0:00:01]} Kh7 {[%emt 0:00:04]} 35. h4 {[%emt 0:00:13]} (35. Rb3 $11 {keeps the balance.}) 35... gxh4 $17 {[%emt 0:00:03]} 36. Rh1 {[%emt 0:00:05]} Bxe5 {[%emt 0:00:07]} 37. Rxh4+ {[%emt 0:00:01] [#]} Kg6 {[%emt 0:00:04]} ({Black should play} 37... Kg7 $1 $17 38. Rg4+ Kf8 39. Bxe5 Rxe5 40. Rc8+ Ke7 41. Rc7+ Kf8 42. Rc8+ Ke7 43. Rc7+ Kf6 44. Rf4+ Rf5 45. Rxf5+ exf5) 38. Bxe5 {[%emt 0:00:04] White is now going downhill.} (38. Re3 $1 $11 {remains equal.} Bxg3 39. Rxe6+ Kg7 40. fxg3 (40. Rg4+ Kf8 $15)) 38... Rxe5 $11 {[%emt 0:00:03][%mdl 4096] Endgame KRR-KRR} 39. Rg3+ {[%emt 0:00:06]} (39. Rb3 $17 {is a better defense.}) 39... Kf6 {[%emt 0:00:06]} 40. Rf3+ {[%emt 0:00:10]} (40. Rb3 $17) 40... Rf5 $19 {[%emt 0:00:02] Threatens to win with ...Rxf3.} 41. Rc3 {[%emt 0:00:04]} (41. Rhf4 $142) 41... Ke5 {[%emt 0:00:07]} 42. Rc2 {[%emt 0:00:01]} Kd6 {[%emt 0:00:02]} 43. Rh3 {[%emt 0:00:07]} (43. Kf1 $142) 43... e5 {[%emt 0:00:09][%cal Be6e5,Be5e4,Be4d3,Bd3d2][%mdl 32]} 44. Rh6+ {[%emt 0:00:04]} R5f6 {[%emt 0:00:02]} 45. Rh3 {[%emt 0:00:02]} e4 {[%emt 0:00:03]} 46. Rd2 {[%emt 0:00:04] Inhibits d4.} Rf3 {[%emt 0:00:06]} 47. Rh4 {[%emt 0:00:02]} (47. Rh5 $142 R3f5 48. Rh6+ Kc5 49. Re6) 47... Kc5 {[%emt 0:00:08]} 48. Rh8 {[%emt 0:00:03]} Rd3 {[%emt 0:00:05]} 49. Rxd3 {[%emt 0:00:14]} (49. Rc2+ Kd4 50. Kf1) 49... exd3 {[%emt 0:00:01] KR-KR} 50. Rh3 {[%emt 0:00:03]} Kc4 {[%emt 0:00:05]} 51. Kf1 {[%emt 0:00:02]} Re7 {[%emt 0:00:02]} ({Not} 51... d2 $2 52. Ke2 $19) 52. Rh4+ {[%emt 0:00:03]} d4 {[%emt 0:00:02] ( -> ...d2)} 53. Rh8 {[%emt 0:00:04]} d2 {[%emt 0:00:02]} 54. Rc8+ {[%emt 0:00:02]} Kb5 {[%emt 0:00:32] Weighted Error Value: White=0.78/Black=0.22 (precise)} 0-1

[Event "Romanian Rapid Open 2022"]
[Site "Sebes"]
[Date "2022.12.02"]
[Round "6.32"]
[White "Sulita, Vlad-Petre"]
[Black "Tudor, Henry Edward"]
[Result "0-1"]
[ECO "B43"]
[WhiteElo "1632"]
[BlackElo "1943"]
[Annotator "TA"]
[PlyCount "77"]
[EventDate "2022.12.02"]
[EventType "rapid"]
[EventCountry "ROU"]
[SourceTitle "playchess.com"]
[Source "ChessBase"]
[SourceQuality "1"]
[TimeControl "600+5"]

{[%evp 13,77,-50,-29,-39,-28,-35,-43,-46,-23,-106,-95,-114,-89,-72,-64,-56,0,0,0,0,0,-76,-70,-132,-126,-132,-104,-234,-239,-224,-239,-225,-236,-238,158,158,154,160,153,74,95,8,11,12,17,0,75,61,62,0,0,0,0,0,0,0,0,0,0,-29988,-29989,-29991,-29991,-29991,-29992,-29995]} 1. e4 {[%emt 0:00:02]} c5 {[%emt 0:00:01]} 2. Nf3 {[%emt 0:00:03]} e6 {[%emt 0:00:02]} 3. d4 {[%emt 0:00:03]} cxd4 {[%emt 0:00:09]} 4. Nxd4 {[%emt 0:00:02]} a6 {[%emt 0:00:01]} 5. Nc3 {[%emt 0:00:16]} Qc7 {[%emt 0:00:03]} 6. Be3 {[%emt 0:00:27]} Bb4 {[%emt 0:00:07]} 7. Qd2 {[%emt 0:00:22] 7.Qd3 gains popularity.} Nf6 $1 {[%emt 0:00:08] Strongly threatening ...Nxe4.} 8. Bd3 {[%emt 0:00:07] B43: Sicilian: Kan Variation: 5 Nc3.} d5 $1 {[%emt 0:00:04]} 9. exd5 {[%emt 0:00:06]} Nxd5 {[%emt 0:00:13]} 10. Nde2 {[%emt 0:00:07] Black is slightly better.} Nxe3 {[%emt 0:01:54]} 11. fxe3 {[%emt 0:00:02]} (11. Qxe3 $11 Nc6 12. a3) 11... Nd7 {[%emt 0:00:34] [#]} 12. a3 $146 {[%emt 0:00:02]} ({Predecessor:} 12. O-O Nf6 13. Nf4 O-O 14. Ncd5 Bxd2 15. Nxc7 Bxe3+ 16. Kh1 Rb8 17. Rf3 Bb6 18. Nb5 axb5 19. Bxb5 {0-1 (49) Makhlouf,A (1419)-Flores Rodriguez,A (1662) Chess.com INT 2021}) 12... Bd6 {[%emt 0:00:23]} 13. Ne4 {[%emt 0:00:02]} Be5 {[%emt 0:00:02]} 14. Nd4 {[%emt 0:00:09]} Bxh2 {[%emt 0:00:27]} (14... b6 $15) 15. O-O-O $11 {[%emt 0:00:19]} Be5 {[%emt 0:00:21]} 16. Qb4 {[%emt 0:01:14]} Qb6 {[%emt 0:01:14]} 17. Qc4 {[%emt 0:01:22]} (17. Bb5 $11 axb5 18. Nxb5) 17... h6 $17 {[%emt 0:01:01]} 18. g4 {[%emt 0:00:16]} ({Better is} 18. Rh5 $15) 18... Nf6 $1 {[%emt 0:00:23][%cal Bd7f6,Bf6d5,Bd5e3][%mdl 32]} 19. g5 {[%emt 0:00:23] [#]} Nd5 {[%emt 0:00:27]} 20. Rde1 {[%emt 0:00:46] [#]} (20. Kd2 $17) 20... Nxe3 $1 $19 {[%emt 0:00:20][%mdl 512]} 21. Rxe3 {[%emt 0:01:08] Threatens to win with Nc5.} Bxd4 {[%emt 0:00:14]} (21... Qxd4 22. Qxd4 Bxd4 23. Rf3) 22. Rf3 {[%emt 0:00:29]} Bxb2+ {[%emt 0:00:29]} 23. Kd2 {[%emt 0:00:04]} Bxa3 $2 {[%emt 0:00:15]} (23... Bd7 $19 {...Rc8 is the strong threat.} 24. Rhf1 hxg5 25. Rxf7 Bxa3 26. Rxg7 Rh2+ 27. Be2 Qb4+ 28. Qxb4 Bxb4+ 29. c3 {[#]} O-O-O $1) 24. Qa4+ $16 {[%emt 0:00:06]} Bd7 {[%emt 0:00:32]} 25. Qxa3 {[%emt 0:00:02]} O-O-O {[%emt 0:00:10]} 26. Nd6+ {[%emt 0:00:22]} (26. Rxf7 $142 {Black must now prevent Nd6+.} Bc6 27. Re1 (27. Qc3 Kb8 $16)) 26... Kb8 {[%emt 0:00:10]} 27. Nxf7 {[%emt 0:00:02]} (27. Rxf7 $16 {aiming for Rh4.} Bc6 28. Rh4) 27... Bc6 $1 $11 {[%emt 0:00:19] [#]} 28. Rhf1 {[%emt 0:00:16]} Bxf3 {[%emt 0:00:44] Chess con chili.} 29. Nxh8 {[%emt 0:00:08]} (29. Nxd8 $5 Qxd8 30. Rxf3 $11) 29... Rxh8 {[%emt 0:01:20]} (29... Be4 $11 {keeps the balance.} 30. Nf7 Rd5 31. gxh6 gxh6) 30. Rxf3 {[%emt 0:00:03]} (30. gxh6 $5 e5 31. Rxf3 Rxh6 32. Qc3 $14 (32. Rf8+ Ka7 $11)) 30... hxg5 {[%emt 0:00:02]} 31. Qe7 {[%emt 0:00:02]} ({But not} 31. Rf8+ Rxf8 32. Qxf8+ Ka7 $11) ({White should try} 31. Qc3 $1 $14) 31... Rh2+ {[%emt 0:00:12]} 32. Kc3 {[%emt 0:00:24]} Qc6+ {[%emt 0:00:09]} 33. Kb2 {[%emt 0:00:16]} Qxf3 {[%emt 0:00:11][%mdl 4096] Endgame KQR-KQB} 34. Qd6+ {[%emt 0:00:02]} Ka7 {[%emt 0:00:02]} 35. Qxh2 {[%emt 0:00:01]} Qf6+ {[%emt 0:00:11]} 36. Qe5 $2 {[%emt 0:03:30][%mdl 8192]} Qxe5+ {[%emt 0:00:02] Black mates.} 37. Kc1 {[%emt 0:00:00]} g4 {[%emt 0:00:04][%cal Bg5g4,Bg4g3][%mdl 32]} 38. Kd2 {[%emt 0:00:00]} g3 {[%emt 0:00:01]} 39. Kd1 {[%emt 0:00:15] Weighted Error Value: White=0.37/Black=0.22 (precise)} 0-1

[Event "Romanian Rapid Open 2022"]
[Site "Sebes"]
[Date "2022.12.02"]
[Round "6.33"]
[White "Bucur, Denisa-Andreea"]
[Black "Radu, Robert-Daniel"]
[Result "1-0"]
[ECO "D38"]
[WhiteElo "1953"]
[BlackElo "1510"]
[Annotator "TA"]
[PlyCount "105"]
[EventDate "2022.12.02"]
[EventType "rapid"]
[EventCountry "ROU"]
[SourceTitle "playchess.com"]
[Source "ChessBase"]
[SourceQuality "1"]
[TimeControl "600+5"]

{[%evp 13,105,12,46,16,33,0,7,0,59,66,70,68,67,72,227,190,211,220,231,230,240,255,289,179,214,86,85,0,0,0,194,0,364,368,358,241,236,222,257,249,267,264,262,251,252,255,262,247,293,250,377,367,376,365,373,368,360,360,352,345,335,335,454,422,461,358,398,367,530,527,522,505,594,541,1074,1064,985,974,29993,29993,29996,29996,29996,29996,29996,29996,29996,29995,29997,29994,29994,29994,29994,29994]} 1. d4 {[%emt 0:00:02]} d5 {[%emt 0:00:01]} 2. c4 {[%emt 0:00:02]} e6 {[%emt 0:00:02]} 3. Nc3 {[%emt 0:00:02]} Nf6 {[%emt 0:00:02]} 4. Nf3 {[%emt 0:00:01]} Bb4 {[%emt 0:00:03]} 5. Qa4+ {[%emt 0:00:03]} Nc6 {[%emt 0:00:02]} 6. e3 {[%emt 0:00:03]} O-O {[%emt 0:00:09]} 7. Bd2 {[%emt 0:00:02] 7.Qc2 deserves study.} a6 {[%emt 0:00:15]} 8. Qc2 {[%emt 0:00:06] D38: Queen's Gambit Declined: Ragozin Defence (4 Nf3 Bb4).} (8. a3 $5 {[%cal Ra3b4]} Bxc3 9. Bxc3 $14) 8... Bd6 {[%emt 0:00:21]} 9. c5 {[%emt 0:00:38]} Be7 {[%emt 0:00:07]} 10. a3 {[%emt 0:00:02] The position is equal.} Bd7 {[%emt 0:00:25]} (10... e5 $11) 11. Bd3 {[%emt 0:00:15]} b6 {[%emt 0:00:40]} 12. b4 $1 {[%emt 0:00:38]} bxc5 {[%emt 0:00:37] [#]} 13. bxc5 $146 {[%emt 0:00:13]} ({Predecessor:} 13. dxc5 e5 14. e4 d4 15. Nd5 Be6 16. Nxe7+ Qxe7 17. O-O Bd7 18. a4 Rfb8 19. Rfb1 {1-0 (48) Feist,M-Sacher,H (2305) ICCF corr 1998}) 13... Ne8 $2 {[%emt 0:00:32]} (13... g6 $16 {was necessary.}) 14. Bxh7+ $18 {[%emt 0:09:08]} Kh8 {[%emt 0:07:59]} 15. Bd3 {[%emt 0:00:00]} f5 {[%emt 0:00:00]} 16. Ne2 {[%emt 0:00:00]} Nf6 {[%emt 0:00:00]} 17. Nf4 {[%emt 0:00:00]} Qe8 {[%emt 0:00:00]} 18. Ng5 {[%emt 0:00:00]} Bd8 {[%emt 0:00:00]} 19. O-O {[%emt 0:00:00]} (19. Be2 $18 {is more deadly.}) 19... Ne4 $16 {[%emt 0:00:00] Against Bc3} 20. Nxe4 {[%emt 0:00:00] White is more active.} (20. h4 $16) 20... fxe4 $11 {[%emt 0:00:00]} 21. Be2 $36 {[%emt 0:00:00][%mdl 2048] White is pushing.} Rf5 {[%emt 0:00:00] Prevents Bh5. Black is on the road to losing.} (21... Rxf4 $1 $11 22. exf4 Nxd4) 22. f3 $2 {[%emt 0:00:00]} (22. Qd1 $18) 22... exf3 $2 {[%emt 0:00:00][%mdl 8192]} (22... Rxf4 $1 $11 {and Black stays safe.} 23. exf4 Nxd4) 23. Rxf3 $18 {[%emt 0:00:00]} ({Weaker is} 23. Bxf3 Rxf4 24. exf4 Nxd4 $18) 23... Bg5 {[%emt 0:00:00]} 24. Bd3 {[%emt 0:00:00]} Bxf4 {[%emt 0:00:00]} 25. Bxf5 {[%emt 0:00:00] [#] Bg6 is the strong threat.} ({Resist} 25. Rxf4 $6 Rxf4 26. exf4 Nxd4 $16) ({Less strong is} 25. exf4 Nxd4 26. Rh3+ Rh5 27. Rxh5+ Qxh5 $16) 25... Bxh2+ {[%emt 0:00:00]} 26. Kxh2 {[%emt 0:00:00]} exf5 {[%emt 0:00:00]} 27. Rh1 {[%emt 0:00:17] aiming for Rxf5.} Kg8 {[%emt 0:00:00]} 28. Kg1 {[%emt 0:00:08]} Qe4 {[%emt 0:00:00]} 29. Qxe4 {[%emt 0:00:20]} fxe4 {[%emt 0:00:00]} 30. Rf1 {[%emt 0:00:05]} Rb8 {[%emt 0:00:00]} 31. Rh5 {[%emt 0:00:07]} Ne7 {[%emt 0:00:00]} (31... Be6 {is a better defense.} 32. Be1 Rb3) 32. Re5 {[%emt 0:00:07]} Ng6 {[%emt 0:00:00]} 33. Rxd5 {[%emt 0:00:03]} Bb5 {[%emt 0:00:00]} 34. Rc1 {[%emt 0:00:09]} c6 {[%emt 0:00:00]} 35. Rd7 {[%emt 0:00:03]} Rf8 {[%emt 0:00:00]} 36. Be1 {[%emt 0:00:05]} Rf1+ {[%emt 0:00:00]} 37. Kh2 {[%emt 0:00:02]} Nf8 {[%emt 0:00:00]} 38. Rd8 {[%emt 0:00:02]} Kf7 {[%emt 0:00:00]} 39. Bd2 {[%emt 0:00:13]} Rf2 {[%emt 0:00:00]} 40. Ba5 {[%emt 0:00:10]} Ne6 {[%emt 0:00:01]} (40... Rf6 $142 41. Rb1 Rf2) 41. Rd7+ {[%emt 0:00:01]} Ke8 {[%emt 0:00:04]} 42. Ra7 {[%emt 0:00:03]} g5 {[%emt 0:00:06]} 43. Kg3 {[%emt 0:00:07]} Re2 {[%emt 0:00:11]} 44. Rh1 {[%emt 0:00:08] [#] White threatens Rhh7 and mate.} Rxe3+ {[%emt 0:00:04]} 45. Kg4 {[%emt 0:00:02] Threatening mate with Rhh7.} Be2+ {[%emt 0:00:06]} 46. Kf5 {[%emt 0:00:01] White mates.} Nxd4+ {[%emt 0:00:10]} 47. Ke5 {[%emt 0:00:06][%cal Rh1h8]} Ne6 {[%emt 0:00:56]} 48. Kxe6 {[%emt 0:00:10][%cal Rh1h8]} Bc4+ {[%emt 0:00:52]} 49. Ke5 {[%emt 0:00:01]} Kf8 {[%emt 0:00:09]} 50. Rh8+ {[%emt 0:00:04]} Bg8 {[%emt 0:00:21]} 51. Ra8+ {[%emt 0:00:04]} Kf7 {[%emt 0:00:05]} 52. Rhxg8 {[%emt 0:00:32]} Rd3 {[%emt 0:00:05]} 53. Kxe4 {[%emt 0:00:05] Weighted Error Value: White=0.27 (precise) /Black=0.54} 1-0

[Event "Romanian Rapid Open 2022"]
[Site "Sebes"]
[Date "2022.12.02"]
[Round "6.34"]
[White "Tariceanu, Victor"]
[Black "Arandjelovic, Aleksandar Z"]
[Result "1-0"]
[ECO "B20"]
[WhiteElo "1720"]
[BlackElo "1899"]
[Annotator "NA RC COMBH"]
[PlyCount "214"]
[EventDate "2022.12.02"]
[EventType "rapid"]
[EventCountry "ROU"]
[SourceTitle "playchess.com"]
[Source "ChessBase"]
[SourceQuality "1"]
[TimeControl "600+5"]

1. e4 {[%emt 0:00:02]} c5 {[%emt 0:00:03]} 2. g3 {[%emt 0:00:01]} Nc6 {[%emt 0:00:02]} 3. Bg2 {[%emt 0:00:02]} g6 {[%emt 0:00:02]} 4. Ne2 {[%emt 0:00:01]} Bg7 {[%emt 0:00:02]} 5. c3 {[%emt 0:00:02]} d6 {[%emt 0:00:14]} 6. d4 {[%emt 0:00:03]} cxd4 {[%emt 0:00:21]} 7. cxd4 {[%emt 0:00:02]} Bg4 {[%emt 0:00:10]} 8. f3 {[%emt 0:00:02]} Bd7 {[%emt 0:00:01]} 9. Nbc3 {[%emt 0:00:03]} Nf6 {[%emt 0:00:32]} 10. Be3 {[%emt 0:00:03]} O-O {[%emt 0:00:08]} 11. O-O {[%emt 0:00:03]} a6 {[%emt 0:01:26]} 12. Qd2 {[%emt 0:00:04]} Re8 {[%emt 0:00:05]} 13. Rac1 {[%emt 0:00:06]} e5 {[%emt 0:00:23]} 14. d5 {[%emt 0:00:04]} Ne7 {[%emt 0:00:37]} 15. b3 {[%emt 0:00:42]} Kh8 {[%emt 0:00:50]} 16. Nd1 {[%emt 0:00:31]} b5 {[%emt 0:00:33]} 17. Nb2 {[%emt 0:00:05]} Neg8 {[%emt 0:00:33]} 18. Nd3 {[%emt 0:00:06]} a5 {[%emt 0:00:09]} 19. Rc2 {[%emt 0:00:14]} h6 {[%emt 0:00:43]} 20. Rfc1 {[%emt 0:00:03]} Kh7 {[%emt 0:00:13]} 21. Rc7 {[%emt 0:00:33]} Re7 {[%emt 0:00:22]} 22. Bb6 {[%emt 0:00:20]} Qb8 {[%emt 0:00:25]} 23. Bxa5 {[%emt 0:00:19]} Ne8 {[%emt 0:00:03]} 24. Qc2 {[%emt 0:00:47]} Nxc7 {[%emt 0:00:12]} 25. Bxc7 {[%emt 0:00:02]} Qa7+ {[%emt 0:00:05]} 26. Kh1 {[%emt 0:00:06]} Qxa2 {[%emt 0:00:31]} 27. Bxd6 {[%emt 0:00:04]} Qxc2 {[%emt 0:00:11]} 28. Rxc2 {[%emt 0:00:03]} Ra1+ {[%emt 0:00:10]} 29. Rc1 {[%emt 0:00:38]} Rxc1+ {[%emt 0:00:02]} 30. Nexc1 {[%emt 0:00:02]} Re8 {[%emt 0:00:02]} 31. Bf1 {[%emt 0:00:06]} f6 {[%emt 0:00:20]} 32. Nc5 {[%emt 0:00:05]} Rc8 {[%emt 0:00:20]} 33. N1d3 {[%emt 0:00:31]} Be8 {[%emt 0:00:05]} 34. Bh3 {[%emt 0:00:03]} Ra8 {[%emt 0:00:06]} 35. Kg1 {[%emt 0:00:14]} h5 {[%emt 0:00:03]} 36. f4 {[%emt 0:00:16]} exf4 {[%emt 0:00:22]} 37. gxf4 {[%emt 0:00:02]} Nh6 {[%emt 0:00:18]} 38. Kg2 {[%emt 0:00:18]} Ra2+ {[%emt 0:00:03]} 39. Kg1 {[%emt 0:00:10]} Ra1+ {[%emt 0:00:20]} 40. Kg2 {[%emt 0:00:13]} b4 {[%emt 0:00:38]} 41. Nxb4 {[%emt 0:00:20]} Bb5 {[%emt 0:00:10]} 42. Nbd3 {[%emt 0:00:44]} Rd1 {[%emt 0:00:18]} 43. Nf2 {[%emt 0:00:19]} Rd2 {[%emt 0:00:13]} 44. Be6 {[%emt 0:00:08]} f5 {[%emt 0:00:21]} 45. exf5 {[%emt 0:00:35]} gxf5 {[%emt 0:00:05]} 46. Kf3 {[%emt 0:00:11]} Bd4 {[%emt 0:00:03]} 47. Nh3 {[%emt 0:00:12]} Be2+ {[%emt 0:00:07]} 48. Kg3 {[%emt 0:00:05]} Kg6 {[%emt 0:00:10]} 49. Bd7 {[%emt 0:00:51]} Ng4 {[%emt 0:00:08]} 50. Be8+ {[%emt 0:00:02]} Kh6 {[%emt 0:00:09]} 51. Bf8+ {[%emt 0:00:05]} Kh7 {[%emt 0:00:04]} 52. Kh4 {[%emt 0:00:15]} Bf6+ {[%emt 0:00:07]} 53. Ng5+ {[%emt 0:00:06]} Kg8 {[%emt 0:00:07]} 54. Nce6 {[%emt 0:00:28]} Bf3 {[%emt 0:00:33]} 55. Bf7+ {[%emt 0:00:22]} Kh8 {[%emt 0:00:01]} 56. h3 {[%emt 0:00:10]} Ne3 {[%emt 0:00:12]} 57. Kg3 {[%emt 0:00:07]} Bxd5 {[%emt 0:00:02]} 58. Bc5 {[%emt 0:00:33]} Rg2+ {[%emt 0:00:02]} 59. Kh4 {[%emt 0:00:03]} Nf1 {[%emt 0:00:11]} 60. Kxh5 {[%emt 0:02:18]} Ng3+ {[%emt 0:00:09]} 61. Kg6 {[%emt 0:00:00]} Bxe6 {[%emt 0:00:03]} 62. Kxf6 {[%emt 0:00:00]} Ne4+ {[%emt 0:00:08]} 63. Nxe4 {[%emt 0:00:00]} Bxf7 {[%emt 0:00:04]} 64. Ng5 {[%emt 0:00:00]} Bxb3 {[%emt 0:00:04]} 65. Kxf5 {[%emt 0:00:00]} Rd2 {[%emt 0:00:02]} 66. Be7 {[%emt 0:00:00]} Rd5+ {[%emt 0:00:01]} 67. Kg6 {[%emt 0:00:00]} Rb5 {[%emt 0:00:05]} 68. f5 {[%emt 0:00:00]} Kg8 {[%emt 0:00:02]} 69. f6 {[%emt 0:00:00]} Rb6 {[%emt 0:00:02]} 70. h4 {[%emt 0:00:00]} Bc2+ {[%emt 0:00:01]} 71. Kh6 {[%emt 0:00:00]} Bb3 {[%emt 0:00:11]} 72. Nf3 {[%emt 0:00:12]} Rb5 {[%emt 0:00:03]} 73. Ng5 {[%emt 0:00:17]} Bc4 {[%emt 0:00:02]} 74. Kg6 {[%emt 0:00:13]} Bd3+ {[%emt 0:00:01]} 75. Kh5 {[%emt 0:00:04]} Be2+ {[%emt 0:00:01]} 76. Kh6 {[%emt 0:00:01]} Bc4 {[%emt 0:00:04]} 77. Bd8 {[%emt 0:00:15]} Bb3 {[%emt 0:00:02]} 78. Be7 {[%emt 0:00:03]} Bc4 {[%emt 0:00:01]} 79. Kh5 {[%emt 0:00:10]} Be2+ {[%emt 0:00:00]} 80. Kg6 {[%emt 0:00:01]} Bd3+ {[%emt 0:00:01]} 81. Kh6 {[%emt 0:00:02]} Bc4 {[%emt 0:00:03]} 82. Bd6 {[%emt 0:00:09]} Rb6 {[%emt 0:00:03]} 83. Be5 {[%emt 0:00:06]} Rb5 {[%emt 0:00:01]} 84. Bc3 {[%emt 0:00:05]} Rb3 {[%emt 0:00:04]} 85. Be5 {[%emt 0:00:05]} Rb5 {[%emt 0:00:14]} 86. Bc7 {[%emt 0:00:04]} Bb3 {[%emt 0:00:04]} 87. Bd8 {[%emt 0:00:05]} Ra5 {[%emt 0:00:08]} 88. Be7 {[%emt 0:00:07]} Ra4 {[%emt 0:00:10]} 89. h5 {[%emt 0:00:08]} Bc2 {[%emt 0:00:00]} 90. Nf3 {[%emt 0:00:06]} Ra5 {[%emt 0:00:01]} 91. Ng5 {[%emt 0:00:06]} Bb3 {[%emt 0:00:01]} 92. Kg6 {[%emt 0:00:01]} Bc2+ {[%emt 0:00:01]} 93. Kh6 {[%emt 0:00:03]} Bb3 {[%emt 0:00:06]} 94. Ne4 {[%emt 0:00:08]} Bd1 {[%emt 0:00:09]} 95. Ng5 {[%emt 0:00:03]} Bb3 {[%emt 0:00:02]} 96. Bd8 {[%emt 0:00:06]} Bc4 {[%emt 0:00:15]} 97. Be7 {[%emt 0:00:02]} Ra8 {[%emt 0:00:08]} 98. Ne4 {[%emt 0:00:13]} Ra5 {[%emt 0:00:04]} 99. Ng5 {[%emt 0:00:07]} Bb3 {[%emt 0:00:02]} 100. Bd8 {[%emt 0:00:05]} Bc4 {[%emt 0:00:01]} 101. Be7 {[%emt 0:00:01]} Bb3 {[%emt 0:00:16]} 102. Bd8 {[%emt 0:00:05]} Bf7 {[%emt 0:00:14]} 103. Bxa5 {[%emt 0:00:01]} Bd5 {[%emt 0:00:30]} 104. Kg6 {[%emt 0:00:05]} Bc4 {[%emt 0:00:04]} 105. f7+ {[%emt 0:00:04]} Bxf7+ {[%emt 0:00:04]} 106. Nxf7 {[%emt 0:00:02]} Kf8 {[%emt 0:00:02]} 107. h6 {[%emt 0:00:01]} Ke8 {[%emt 0:00:18]} 1-0